[Event "British Rapidplay Championship 2023"]
[Site "Mercure Bradford, Bankfield Hotel"]
[Date "2023.04.15"]
[Round "1.15"]
[White "Baxter, Martin"]
[Black "Hutchinson, Paul A"]
[Result "0-1"]
[TimeControl "15 minutes plus 10 seconds per move"]
[WhiteElo "1766"]
[BlackElo "2184"]

1. e4 {[%clk 00:15:16]} {[%emt 00:00:03]} d5 {[%clk 00:15:19]} {[%emt
00:00:02]} 2. exd5 {[%clk 00:15:21]} {[%emt 00:00:04]} Qxd5 {[%clk 00:15:28]}
{[%emt 00:00:01]} 3. Nc3 {[%clk 00:15:23]} {[%emt 00:00:08]} Qa5 {[%clk
00:15:37]} {[%emt 00:00:02]} 4. Nf3 {[%clk 00:15:25]} {[%emt 00:00:07]} Nf6
{[%clk 00:15:41]} {[%emt 00:00:07]} 5. d4 {[%clk 00:15:24]} {[%emt 00:00:10]}
c6 {[%clk 00:15:49]} {[%emt 00:00:02]} 6. Bc4 {[%clk 00:14:45]} {[%emt
00:00:50]} b5 {[%clk 00:15:35]} {[%emt 00:00:24]} 7. Bb3 {[%clk 00:14:30]}
{[%emt 00:00:24]} e6 {[%clk 00:15:43]} {[%emt 00:00:03]} 8. Bd2 {[%clk
00:14:23]} {[%emt 00:00:17]} Qc7 {[%clk 00:15:50]} {[%emt 00:00:03]} 9. O-O
{[%clk 00:14:17]} {[%emt 00:00:17]} Be7 {[%clk 00:15:57]} {[%emt 00:00:03]} 10.
Re1 {[%clk 00:14:03]} {[%emt 00:00:23]} O-O {[%clk 00:16:03]} {[%emt 00:00:04]}
11. Ne5 {[%clk 00:13:18]} {[%emt 00:00:54]} Nbd7 {[%clk 00:15:52]} {[%emt
00:00:22]} 12. Qe2 {[%clk 00:11:48]} {[%emt 00:01:40]} a5 {[%clk 00:15:48]}
{[%emt 00:00:15]} 13. a4 {[%clk 00:11:35]} {[%emt 00:00:23]} b4 {[%clk
00:15:56]} {[%emt 00:00:01]} 14. Ne4 {[%clk 00:11:23]} {[%emt 00:00:22]} h6
{[%clk 00:15:28]} {[%emt 00:00:39]} 15. Nxf6+ {[%clk 00:10:29]} {[%emt
00:01:04]} Bxf6 {[%clk 00:15:35]} {[%emt 00:00:02]} 16. Nxd7 {[%clk 00:09:56]}
{[%emt 00:00:43]} Bxd7 {[%clk 00:15:43]} {[%emt 00:00:03]} 17. c3 {[%clk
00:09:51]} {[%emt 00:00:15]} c5 {[%clk 00:15:46]} {[%emt 00:00:07]} 18. dxc5
{[%clk 00:08:40]} {[%emt 00:01:21]} Qxc5 {[%clk 00:15:51]} {[%emt 00:00:05]} 19.
Rac1 {[%clk 00:08:36]} {[%emt 00:00:13]} bxc3 {[%clk 00:14:15]} {[%emt
00:01:46]} 20. Bxc3 {[%clk 00:08:34]} {[%emt 00:00:12]} Qg5 {[%clk 00:14:22]}
{[%emt 00:00:04]} 21. Bd2 {[%clk 00:08:09]} {[%emt 00:00:34]} Qh4 {[%clk
00:14:00]} {[%emt 00:00:31]} 22. Rc4 {[%clk 00:07:36]} {[%emt 00:00:45]} Bd4
{[%clk 00:13:38]} {[%emt 00:00:32]} 23. Bc3 {[%clk 00:06:22]} {[%emt 00:01:23]}
e5 {[%clk 00:13:46]} {[%emt 00:00:02]} 24. Qd2 {[%clk 00:05:49]} {[%emt
00:00:42]} Rfe8 {[%clk 00:12:40]} {[%emt 00:01:17]} 25. g3 {[%clk 00:04:14]}
{[%emt 00:01:46]} Qf6 {[%clk 00:12:36]} {[%emt 00:00:13]} 26. Bxd4 {[%clk
00:03:33]} {[%emt 00:00:51]} exd4 {[%clk 00:12:44]} {[%emt 00:00:02]} 27. Rxe8+
{[%clk 00:03:07]} {[%emt 00:00:36]} Rxe8 {[%clk 00:12:53]} {[%emt 00:00:02]} 28.
Rxd4 {[%clk 00:02:34]} {[%emt 00:00:42]} Bh3 {[%clk 00:12:47]} {[%emt
00:00:15]} 29. Rf4 {[%clk 00:02:29]} {[%emt 00:00:16]} Qc6 {[%clk 00:12:15]}
{[%emt 00:00:43]} 30. Bxf7+ {[%clk 00:01:59]} {[%emt 00:00:40]} Kh8 {[%clk
00:12:24]} 31. Bd5 {[%clk 00:02:07]} {[%emt 00:00:02]} Qxd5 {[%clk 00:12:27]}
{[%emt 00:00:07]} 0-1

[Event "British Rapidplay Championship 2023"]
[Site "Mercure Bradford, Bankfield Hotel"]
[Date "2023.04.15"]
[Round "1.16"]
[White "Ackley, Peter JE"]
[Black "Harker, Peter"]
[Result "1-0"]
[TimeControl "15 minutes plus 10 seconds per move"]
[WhiteElo "2151"]
[BlackElo "1766"]

1. c4 {[%clk 00:15:19]} e6 {[%clk 00:14:42]} {[%emt 00:00:38]} 2. g3 {[%clk
00:15:23]} {[%emt 00:00:06]} d5 {[%clk 00:14:45]} {[%emt 00:00:08]} 3. Bg2
{[%clk 00:15:30]} {[%emt 00:00:02]} Nf6 {[%clk 00:14:45]} {[%emt 00:00:10]} 4.
Nf3 {[%clk 00:15:38]} {[%emt 00:00:03]} c5 {[%clk 00:14:26]} {[%emt 00:00:29]}
5. O-O {[%clk 00:15:41]} {[%emt 00:00:06]} Nc6 {[%clk 00:14:31]} {[%emt
00:00:05]} 6. d4 {[%clk 00:15:38]} {[%emt 00:00:13]} Be7 {[%clk 00:14:37]}
{[%emt 00:00:05]} 7. cxd5 {[%clk 00:15:29]} {[%emt 00:00:19]} Nxd5 {[%clk
00:14:32]} {[%emt 00:00:15]} 8. Nc3 {[%clk 00:15:08]} {[%emt 00:00:30]} Nxc3
{[%clk 00:14:27]} {[%emt 00:00:15]} 9. bxc3 {[%clk 00:15:17]} {[%emt 00:00:02]}
O-O {[%clk 00:14:26]} {[%emt 00:00:10]} 10. h4 {[%clk 00:14:06]} {[%emt
00:01:20]} cxd4 {[%clk 00:13:51]} {[%emt 00:00:46]} 11. cxd4 {[%clk 00:14:14]}
{[%emt 00:00:02]} Bf6 {[%clk 00:13:41]} {[%emt 00:00:21]} 12. Be3 {[%clk
00:13:01]} {[%emt 00:01:22]} Ne7 {[%clk 00:12:51]} {[%emt 00:01:01]} 13. Bg5
{[%clk 00:12:20]} {[%emt 00:00:50]} Nd5 {[%clk 00:11:30]} {[%emt 00:01:31]} 14.
e4 {[%clk 00:10:08]} {[%emt 00:02:21]} Bxg5 {[%clk 00:10:02]} {[%emt 00:01:39]}
15. hxg5 {[%clk 00:10:12]} {[%emt 00:00:06]} Ne7 {[%clk 00:09:59]} {[%emt
00:00:13]} 16. Qd2 {[%clk 00:09:24]} {[%emt 00:00:58]} b6 {[%clk 00:09:02]}
{[%emt 00:01:07]} 17. Rac1 {[%clk 00:07:22]} {[%emt 00:02:12]} Bb7 {[%emt
00:00:09]} 18. Ne5 {[%clk 00:07:30]} Qd6 {[%clk 00:06:49]} {[%emt 00:02:26]} 19.
f4 {[%clk 00:05:34]} {[%emt 00:02:06]} Rac8 {[%clk 00:06:35]} {[%emt 00:00:24]}
20. Nc4 {[%clk 00:04:55]} {[%emt 00:00:49]} Qd7 {[%clk 00:06:19]} {[%emt
00:00:26]} 21. Ne3 {[%clk 00:05:02]} {[%emt 00:00:03]} Rfd8 {[%clk 00:05:45]}
{[%emt 00:00:44]} 22. Rxc8 {[%clk 00:05:04]} Rxc8 {[%clk 00:05:50]} {[%emt
00:00:13]} 23. Rd1 {[%clk 00:04:59]} {[%emt 00:00:15]} Qc7 {[%clk 00:04:21]}
{[%emt 00:01:39]} 24. Kf2 {[%clk 00:04:39]} {[%emt 00:00:30]} Qc3 {[%clk
00:04:22]} {[%emt 00:00:10]} 25. Qxc3 {[%clk 00:04:02]} {[%emt 00:00:47]} Rxc3
{[%clk 00:04:30]} 26. d5 {[%clk 00:04:04]} {[%emt 00:00:07]} exd5 {[%clk
00:04:02]} {[%emt 00:00:39]} 27. exd5 {[%clk 00:04:13]} {[%emt 00:00:02]} g6
{[%clk 00:02:49]} {[%emt 00:01:23]} 28. d6 {[%clk 00:04:05]} {[%emt 00:00:17]}
Nc6 {[%clk 00:01:59]} {[%emt 00:01:00]} 29. Bxc6 {[%clk 00:03:49]} {[%emt
00:00:27]} Bxc6 {[%clk 00:02:08]} {[%emt 00:00:01]} 30. d7 {[%clk 00:03:57]}
Bxd7 {[%clk 00:02:08]} {[%emt 00:00:10]} 31. Rxd7 {[%clk 00:04:06]} {[%emt
00:00:01]} Ra3 {[%clk 00:02:16]} {[%emt 00:00:03]} 32. Ng4 {[%clk 00:03:36]}
{[%emt 00:00:39]} Rxa2+ {[%clk 00:02:24]} {[%emt 00:00:03]} 33. Kf3 {[%clk
00:03:43]} {[%emt 00:00:02]} Ra3+ {[%clk 00:02:23]} {[%emt 00:00:12]} 34. Ke4
{[%clk 00:03:43]} {[%emt 00:00:09]} Rxg3 {[%clk 00:02:19]} {[%emt 00:00:14]} 35.
Nh6+ {[%clk 00:03:30]} {[%emt 00:00:23]} Kf8 {[%clk 00:02:19]} {[%emt
00:00:09]} 36. Rxf7+ {[%clk 00:03:36]} {[%emt 00:00:05]} Ke8 {[%clk 00:02:27]}
{[%emt 00:00:02]} 37. Rxa7 {[%clk 00:03:37]} {[%emt 00:00:09]} Rg1 {[%clk
00:02:25]} {[%emt 00:00:13]} 38. Rxh7 {[%clk 00:03:22]} {[%emt 00:00:24]} Re1+
{[%clk 00:02:30]} {[%emt 00:00:04]} 39. Kd4 {[%clk 00:03:27]} {[%emt 00:00:05]}
Rf1 {[%clk 00:02:39]} {[%emt 00:00:02]} 40. Ke5 {[%clk 00:03:23]} {[%emt
00:00:15]} Re1+ {[%clk 00:02:39]} {[%emt 00:00:09]} 41. Kf6 {[%clk 00:03:29]}
{[%emt 00:00:04]} Rf1 {[%clk 00:02:48]} {[%emt 00:00:01]} 42. f5 {[%clk
00:03:15]} {[%emt 00:00:24]} gxf5 {[%clk 00:02:26]} {[%emt 00:00:32]} 43. Nxf5
{[%clk 00:03:23]} {[%emt 00:00:02]} b5 {[%clk 00:02:34]} {[%emt 00:00:03]} 44.
g6 {[%clk 00:03:15]} {[%emt 00:00:17]} b4 {[%clk 00:02:37]} {[%emt 00:00:07]}
45. g7 {[%clk 00:03:02]} {[%emt 00:00:22]} Rg1 {[%clk 00:02:45]} {[%emt
00:00:03]} 46. Rh8+ {[%clk 00:03:08]} {[%emt 00:00:04]} 1-0

[Event "British Rapidplay Championship 2023"]
[Site "Mercure Bradford, Bankfield Hotel"]
[Date "2023.04.15"]
[Round "1.17"]
[White "Sisupalan, Beni"]
[Black "Watson, Phil R"]
[Result "0-1"]
[TimeControl "15 minutes plus 10 seconds per move"]
[WhiteElo "1766"]
[BlackElo "2144"]

1. e4 {[%clk 00:15:18]} c6 {[%clk 00:15:18]} {[%emt 00:00:03]} 2. d4 {[%emt
00:00:04]} d5 {[%clk 00:15:27]} 3. e5 {[%clk 00:15:35]} {[%emt 00:00:01]} Bf5
{[%clk 00:15:35]} {[%emt 00:00:02]} 4. Bd3 {[%clk 00:15:43]} {[%emt 00:00:01]}
Bxd3 {[%clk 00:15:40]} {[%emt 00:00:05]} 5. Qxd3 {[%clk 00:15:50]} {[%emt
00:00:02]} e6 {[%clk 00:15:48]} {[%emt 00:00:02]} 6. Nf3 {[%clk 00:15:52]}
{[%emt 00:00:08]} Qb6 {[%clk 00:15:46]} {[%emt 00:00:12]} 7. c3 {[%clk
00:15:56]} {[%emt 00:00:06]} Qa6 {[%clk 00:15:43]} {[%emt 00:00:13]} 8. Qxa6
{[%clk 00:14:58]} {[%emt 00:01:07]} Nxa6 {[%clk 00:15:52]} {[%emt 00:00:02]} 9.
O-O {[%clk 00:14:49]} {[%emt 00:00:19]} Ne7 {[%clk 00:15:43]} {[%emt 00:00:19]}
10. Nbd2 {[%clk 00:14:29]} {[%emt 00:00:30]} c5 {[%clk 00:15:12]} {[%emt
00:00:42]} 11. Re1 {[%clk 00:14:09]} {[%emt 00:00:29]} Nc6 {[%clk 00:14:56]}
{[%emt 00:00:26]} 12. a3 {[%clk 00:13:02]} {[%emt 00:01:17]} c4 {[%clk
00:12:53]} {[%emt 00:02:13]} 13. Nf1 {[%clk 00:11:14]} {[%emt 00:01:57]} h6
{[%clk 00:12:09]} {[%emt 00:00:55]} 14. Bf4 {[%clk 00:09:42]} {[%emt 00:01:41]}
Be7 {[%clk 00:11:51]} {[%emt 00:00:29]} 15. Ne3 {[%clk 00:09:03]} {[%emt
00:00:49]} b5 {[%clk 00:09:04]} {[%emt 00:02:57]} 16. Nd2 {[%clk 00:08:27]}
{[%emt 00:00:45]} O-O {[%clk 00:07:45]} {[%emt 00:01:29]} 17. h3 {[%clk
00:06:44]} {[%emt 00:01:53]} Nc7 {[%clk 00:06:58]} {[%emt 00:00:58]} 18. Kh2
{[%clk 00:06:31]} {[%emt 00:00:22]} a5 {[%clk 00:06:57]} {[%emt 00:00:11]} 19.
Rg1 {[%clk 00:05:19]} {[%emt 00:01:22]} b4 {[%clk 00:06:43]} {[%emt 00:00:24]}
20. a4 {[%clk 00:05:22]} {[%emt 00:00:07]} Rab8 {[%clk 00:06:18]} {[%emt
00:00:36]} 21. Rab1 {[%clk 00:05:11]} {[%emt 00:00:21]} Rb7 {[%clk 00:06:15]}
{[%emt 00:00:14]} 22. f3 {[%clk 00:04:34]} {[%emt 00:00:46]} Rfb8 {[%clk
00:06:20]} {[%emt 00:00:06]} 23. g4 {[%clk 00:04:13]} {[%emt 00:00:31]} bxc3
{[%clk 00:05:04]} {[%emt 00:01:26]} 24. bxc3 {[%clk 00:04:21]} {[%emt
00:00:02]} Rb2 {[%clk 00:05:10]} {[%emt 00:00:04]} 25. Ng2 {[%clk 00:03:22]}
{[%emt 00:01:09]} Rxb1 {[%clk 00:04:32]} {[%emt 00:00:49]} 26. Rxb1 {[%clk
00:03:26]} {[%emt 00:00:06]} Rxb1 {[%clk 00:04:39]} {[%emt 00:00:02]} 27. Nxb1
{[%clk 00:03:35]} {[%emt 00:00:01]} Na8 {[%clk 00:04:40]} {[%emt 00:00:10]} 28.
Kg3 {[%clk 00:02:44]} {[%emt 00:01:00]} Nb6 {[%clk 00:04:46]} {[%emt 00:00:05]}
29. Bc1 {[%clk 00:02:38]} {[%emt 00:00:15]} Nxa4 {[%clk 00:04:50]} {[%emt
00:00:06]} 30. Ne3 {[%clk 00:02:36]} {[%emt 00:00:11]} Na7 {[%clk 00:04:38]}
{[%emt 00:00:23]} 31. f4 {[%clk 00:02:01]} {[%emt 00:00:44]} Nb5 {[%clk
00:04:41]} {[%emt 00:00:08]} 32. Nd1 {[%clk 00:02:08]} {[%emt 00:00:03]} Nb6
{[%clk 00:04:39]} {[%emt 00:00:12]} 33. Ne3 {[%clk 00:01:57]} {[%emt 00:00:21]}
Nd7 {[%clk 00:03:14]} {[%emt 00:01:35]} 34. Nc2 {[%clk 00:01:19]} {[%emt
00:00:48]} Nb8 {[%clk 00:03:12]} {[%emt 00:00:13]} 35. Kf3 {[%clk 00:01:17]}
{[%emt 00:00:10]} Nc6 {[%clk 00:03:14]} {[%emt 00:00:09]} 36. Bb2 {[%clk
00:00:59]} {[%emt 00:00:28]} Kf8 {[%clk 00:03:06]} {[%emt 00:00:18]} 37. Kg3
{[%clk 00:00:41]} {[%emt 00:00:28]} Ke8 {[%clk 00:03:04]} {[%emt 00:00:13]} 38.
Kf3 {[%clk 00:00:48]} {[%emt 00:00:02]} Kd7 {[%clk 00:03:12]} {[%emt 00:00:03]}
39. Kg3 {[%clk 00:00:56]} {[%emt 00:00:02]} a4 {[%clk 00:02:21]} {[%emt
00:01:01]} 40. Kf3 {[%clk 00:01:03]} {[%emt 00:00:02]} Kc7 {[%clk 00:02:17]}
{[%emt 00:00:15]} 41. Kg3 {[%clk 00:01:10]} {[%emt 00:00:01]} Kb6 {[%clk
00:02:26]} {[%emt 00:00:02]} 42. Kf3 {[%clk 00:01:19]} {[%emt 00:00:02]} Ka5
{[%clk 00:02:34]} {[%emt 00:00:02]} 43. Ke3 {[%clk 00:01:24]} {[%emt 00:00:04]}
g6 {[%clk 00:02:10]} {[%emt 00:00:35]} 44. Kf3 {[%clk 00:01:08]} {[%emt
00:00:26]} a3 {[%clk 00:02:02]} {[%emt 00:00:19]} 45. Ncxa3 {[%clk 00:01:04]}
{[%emt 00:00:13]} Nxa3 {[%clk 00:02:10]} {[%emt 00:00:02]} 46. Nxa3 {[%clk
00:00:32]} {[%emt 00:00:42]} Ka4 {[%clk 00:02:14]} {[%emt 00:00:06]} 47. Nb1
{[%clk 00:00:19]} {[%emt 00:00:22]} Kb3 {[%clk 00:02:21]} {[%emt 00:00:03]} 48.
Bc1 {[%clk 00:00:17]} {[%emt 00:00:12]} Kc2 {[%clk 00:02:25]} {[%emt 00:00:06]}
49. Ba3 {[%clk 00:00:25]} {[%emt 00:00:03]} Kxb1 {[%clk 00:02:33]} {[%emt
00:00:02]} 50. Bxe7 {[%clk 00:00:32]} {[%emt 00:00:02]} Nxe7 {[%clk 00:02:41]}
{[%emt 00:00:02]} 51. Ke3 {[%clk 00:00:41]} {[%emt 00:00:02]} Kc2 {[%clk
00:02:50]} {[%emt 00:00:01]} 52. f5 {[%clk 00:00:47]} {[%emt 00:00:03]} Kxc3
{[%clk 00:02:49]} {[%emt 00:00:11]} 53. f6 {[%clk 00:00:52]} {[%emt 00:00:04]}
Nc6 {[%clk 00:02:56]} {[%emt 00:00:04]} 54. g5 {[%clk 00:01:00]} {[%emt
00:00:01]} h5 {[%clk 00:03:01]} {[%emt 00:00:05]} 55. h4 {[%clk 00:01:08]}
{[%emt 00:00:01]} Nxd4 {[%clk 00:03:09]} {[%emt 00:00:03]} 56. Kf4 {[%clk
00:01:16]} {[%emt 00:00:02]} Kd3 {[%clk 00:03:13]} {[%emt 00:00:06]} 57. Kg3
{[%clk 00:01:23]} {[%emt 00:00:02]} c3 {[%clk 00:03:22]} {[%emt 00:00:02]} 58.
Kf2 {[%clk 00:01:31]} {[%emt 00:00:01]} c2 {[%clk 00:03:31]} {[%emt 00:00:02]}
59. Kg3 {[%clk 00:01:38]} {[%emt 00:00:02]} c1=Q {[%clk 00:03:38]} {[%emt
00:00:04]} 60. Kf2 {[%clk 00:01:47]} {[%emt 00:00:01]} Qf4+ {[%clk 00:03:36]}
{[%emt 00:00:12]} 61. Kg2 {[%clk 00:01:54]} {[%emt 00:00:03]} Qf3+ {[%clk
00:03:43]} {[%emt 00:00:03]} 62. Kh2 {[%clk 00:02:00]} {[%emt 00:00:03]} Qg4
{[%clk 00:03:41]} {[%emt 00:00:12]} 63. Kh1 {[%clk 00:02:04]} {[%emt 00:00:06]}
Ke2 {[%clk 00:03:49]} {[%emt 00:00:03]} 64. Kh2 {[%clk 00:02:12]} {[%emt
00:00:01]} Nf3 {[%clk 00:03:57]} {[%emt 00:00:02]} 65. Kh1 {[%clk 00:02:21]}
{[%emt 00:00:02]} Qg1+ {[%clk 00:04:05]} {[%emt 00:00:02]} 0-1

[Event "British Rapidplay Championship 2023"]
[Site "Mercure Bradford, Bankfield Hotel"]
[Date "2023.04.15"]
[Round "1.18"]
[White "Jackson, Sheila"]
[Black "Keerthi Kumar, Advait"]
[Result "1/2-1/2"]
[TimeControl "15 minutes plus 10 seconds per move"]
[WhiteElo "2140"]
[BlackElo "1742"]

1. e4 {[%clk 00:15:19]} {[%emt 00:00:01]} c5 {[%clk 00:15:19]} {[%emt
00:00:01]} 2. c3 {[%clk 00:15:26]} {[%emt 00:00:03]} Nf6 {[%clk 00:15:27]}
{[%emt 00:00:02]} 3. e5 {[%clk 00:15:35]} Nd5 {[%clk 00:15:36]} {[%emt
00:00:01]} 4. d4 {[%clk 00:15:44]} cxd4 {[%clk 00:15:43]} {[%emt 00:00:03]} 5.
Nf3 {[%clk 00:15:45]} {[%emt 00:00:08]} Nc6 {[%clk 00:15:44]} {[%emt 00:00:09]}
6. Bc4 {[%clk 00:15:44]} {[%emt 00:00:11]} Nb6 {[%clk 00:15:34]} {[%emt
00:00:18]} 7. Bb3 {[%clk 00:15:50]} {[%emt 00:00:06]} g6 {[%clk 00:14:40]}
{[%emt 00:01:04]} 8. cxd4 {[%clk 00:15:08]} {[%emt 00:00:52]} Bg7 {[%clk
00:14:44]} {[%emt 00:00:05]} 9. Nc3 {[%clk 00:14:31]} {[%emt 00:00:47]} d6
{[%clk 00:14:03]} {[%emt 00:00:50]} 10. Bf4 {[%clk 00:13:03]} {[%emt 00:01:38]}
dxe5 {[%clk 00:14:01]} {[%emt 00:00:13]} 11. dxe5 {[%clk 00:13:03]} {[%emt
00:00:10]} O-O {[%clk 00:13:34]} {[%emt 00:00:38]} 12. h3 {[%clk 00:12:59]}
{[%emt 00:00:13]} a5 {[%clk 00:11:13]} {[%emt 00:02:30]} 13. a3 {[%clk
00:12:21]} {[%emt 00:00:49]} Kh8 {[%clk 00:09:21]} {[%emt 00:02:02]} 14. O-O
{[%clk 00:11:55]} {[%emt 00:00:36]} Nd7 {[%clk 00:09:09]} {[%emt 00:00:20]} 15.
Re1 {[%clk 00:10:50]} {[%emt 00:01:15]} Nc5 {[%clk 00:09:13]} {[%emt 00:00:06]}
16. Bc4 {[%clk 00:09:06]} {[%emt 00:01:54]} Be6 {[%clk 00:09:02]} {[%emt
00:00:21]} 17. Bxe6 {[%clk 00:08:37]} {[%emt 00:00:40]} Nxe6 {[%clk 00:09:04]}
{[%emt 00:00:08]} 18. Bg3 {[%clk 00:08:04]} {[%emt 00:00:43]} Qb6 {[%clk
00:08:53]} {[%emt 00:00:21]} 19. Rb1 {[%clk 00:07:01]} {[%emt 00:01:13]} Rad8
{[%clk 00:08:53]} {[%emt 00:00:10]} 20. Qa4 {[%clk 00:06:26]} {[%emt 00:00:45]}
Ncd4 {[%clk 00:08:22]} {[%emt 00:00:40]} 21. Nxd4 {[%clk 00:06:07]} {[%emt
00:00:30]} Rxd4 {[%clk 00:08:16]} {[%emt 00:00:15]} 22. Qb5 {[%emt 00:00:25]}
Qxb5 {[%clk 00:07:17]} {[%emt 00:01:08]} 23. Nxb5 {[%clk 00:06:03]} Rd2 {[%clk
00:07:11]} {[%emt 00:00:13]} 24. b4 {[%clk 00:05:37]} {[%emt 00:00:40]} axb4
{[%clk 00:06:31]} {[%emt 00:00:50]} 25. axb4 {[%clk 00:05:14]} {[%emt
00:00:33]} Nd4 {[%clk 00:05:55]} {[%emt 00:00:44]} 26. Nxd4 {[%clk 00:04:14]}
{[%emt 00:01:11]} Rxd4 {[%clk 00:06:02]} {[%emt 00:00:03]} 27. Rec1 {[%clk
00:03:43]} {[%emt 00:00:41]} Rd7 {[%clk 00:05:56]} {[%emt 00:00:16]} 28. b5
{[%clk 00:03:38]} {[%emt 00:00:15]} Bh6 {[%clk 00:05:21]} {[%emt 00:00:45]} 29.
Rc4 {[%clk 00:03:25]} {[%emt 00:00:23]} b6 {[%clk 00:05:11]} {[%emt 00:00:20]}
30. Rc6 {[%clk 00:03:30]} {[%emt 00:00:04]} Rb7 {[%clk 00:05:18]} {[%emt
00:00:03]} 31. e6 {[%clk 00:03:12]} {[%emt 00:00:29]} fxe6 {[%clk 00:04:34]}
{[%emt 00:00:54]} 32. Rxe6 {[%clk 00:02:55]} {[%emt 00:00:28]} Kg8 {[%clk
00:04:38]} {[%emt 00:00:04]} 33. Rc6 {[%clk 00:02:47]} {[%emt 00:00:20]} Bd2
{[%clk 00:04:20]} {[%emt 00:00:28]} 34. Be5 {[%clk 00:02:18]} {[%emt 00:00:39]}
Ba5 {[%clk 00:03:53]} {[%emt 00:00:37]} 35. Rd1 {[%clk 00:02:22]} {[%emt
00:00:06]} Bb4 {[%clk 00:04:02]} {[%emt 00:00:02]} 36. f3 {[%clk 00:01:53]}
{[%emt 00:00:39]} Bc5+ {[%clk 00:04:05]} {[%emt 00:00:07]} 37. Kf1 {[%clk
00:01:59]} {[%emt 00:00:03]} Kf7 {[%clk 00:04:07]} {[%emt 00:00:08]} 38. Ke2
{[%clk 00:01:59]} {[%emt 00:00:10]} Ra8 {[%clk 00:04:15]} {[%emt 00:00:02]} 39.
Rd2 {[%clk 00:02:01]} {[%emt 00:00:09]} Rba7 {[%clk 00:03:52]} {[%emt
00:00:32]} 40. Bd4 {[%clk 00:01:27]} {[%emt 00:00:44]} Bxd4 {[%clk 00:03:18]}
{[%emt 00:00:44]} 41. Rxd4 {[%clk 00:01:36]} Rb8 {[%clk 00:03:27]} 42. g4
{[%clk 00:01:39]} {[%emt 00:00:07]} Ra2+ {[%clk 00:03:35]} {[%emt 00:00:02]} 43.
Rd2 {[%clk 00:01:46]} {[%emt 00:00:02]} Ra5 {[%clk 00:03:44]} {[%emt 00:00:01]}
44. Rb2 {[%clk 00:01:53]} {[%emt 00:00:04]} Ra4 {[%clk 00:03:41]} {[%emt
00:00:13]} 45. h4 {[%clk 00:01:42]} {[%emt 00:00:21]} Rb7 {[%emt 00:00:19]} 46.
Ke3 {[%clk 00:01:43]} {[%emt 00:00:08]} Ra3+ {[%clk 00:03:39]} {[%emt
00:00:04]} 47. Ke4 {[%clk 00:01:36]} {[%emt 00:00:17]} Ra4+ {[%clk 00:03:38]}
{[%emt 00:00:11]} 48. Ke3 {[%clk 00:01:13]} {[%emt 00:00:33]} Ra3+ {[%clk
00:03:46]} {[%emt 00:00:03]} 49. Ke2 {[%clk 00:01:22]} Ra4 {[%clk 00:03:50]}
{[%emt 00:00:05]} 50. Rb3 {[%clk 00:01:30]} {[%emt 00:00:02]} Ra2+ {[%clk
00:03:35]} {[%emt 00:00:26]} 51. Ke3 {[%clk 00:01:26]} {[%emt 00:00:14]} Ra4
{[%clk 00:03:43]} {[%emt 00:00:01]} 52. h5 {[%clk 00:01:25]} {[%emt 00:00:12]}
gxh5 {[%clk 00:03:34]} {[%emt 00:00:19]} 53. gxh5 {[%clk 00:01:16]} {[%emt
00:00:19]} Rh4 {[%clk 00:03:42]} {[%emt 00:00:02]} 54. h6 {[%clk 00:00:59]}
{[%emt 00:00:26]} Rh5 {[%clk 00:03:43]} {[%emt 00:00:09]} 55. Kf4 {[%clk
00:00:59]} {[%emt 00:00:10]} e6 {[%clk 00:03:19]} {[%emt 00:00:35]} 56. Rd3
{[%clk 00:00:26]} {[%emt 00:00:43]} Rxb5 {[%clk 00:03:08]} {[%emt 00:00:21]} 57.
Rdd6 {[%clk 00:00:33]} {[%emt 00:00:03]} Rf5+ {[%clk 00:03:17]} 58. Kg4 {[%clk
00:00:35]} {[%emt 00:00:08]} Rf6 {[%clk 00:03:24]} {[%emt 00:00:03]} 59. Rxb6
{[%clk 00:00:43]} {[%emt 00:00:02]} 1/2-1/2